fUSD/lending_fUSD_20250101
["ID","MTS","AMOUNT","RATE_DAILY","PERIOD"]
[347368463,1735737046264,-319.54606919,0.00010958,2]
[347368464,1735737046273,-1128.97,0.00010958,2]
[347368465,1735737046283,-500.0,0.00010958,2]
[347368466,1735737046292,-796.67,0.00010958,2]
[347368467,1735737046301,-1554.87,0.00010958,2]
[347368468,1735737046310,-8479.75,0.00010958,2]
[347368469,1735737046320,-500.0,0.00010958,2]
[347368470,1735737046329,-527.21,0.00010958,2]
[347368471,1735737046339,-1029.33,0.00010958,2]
[347368473,1735737046348,-500.0,0.00010958,2]
[347368474,1735737046358,-1348.74,0.00010958,2]
[347368475,1735737046367,-653.79,0.00010958,2]
[347368476,1735737046376,-1863.21,0.00010958,2]
[347368477,1735737046387,-500.0,0.00010958,2]
[347368478,1735737046396,-1198.56,0.00010958,2]
[347368479,1735737046405,-1863.21,0.00010958,2]
[347368480,1735737046415,-1863.21,0.00010958,2]
[347368481,1735737046424,-846.55,0.00010958,2]
[347368482,1735737046433,-1863.21,0.00010958,2]
[347368483,1735737046443,-3132.94,0.00010958,2]
[347368484,1735737046452,-500.0,0.00010958,2]
[347368485,1735737046461,-500.0,0.00010958,2]
[347368486,1735737046471,-2355.97,0.00010958,2]
[347368487,1735737046480,-7994.46,0.00010958,2]
[347368488,1735737046489,-608.28,0.00010958,2]
[347368489,1735737046499,-500.0,0.00010958,2]
[347368490,1735737046508,-842.61,0.00010958,2]
[347368491,1735737046517,-1722.55,0.00010958,2]
[347368492,1735737046526,-500.0,0.00010958,2]
[347368493,1735737046536,-500.0,0.00010958,2]
[347368494,1735737046545,-500.0,0.00010958,2]
[347368495,1735737046554,-1034.33,0.00010958,2]
[347368496,1735737046563,-536.09,0.00010958,2]
[347368497,1735737046572,-6125.92,0.00010958,2]
[347368498,1735737046581,-555.31,0.00010958,2]
[347368499,1735737046591,-1946.04,0.00010958,2]
[347368500,1735737046600,-869.82,0.00010958,2]
[347368501,1735737046609,-1912.66,0.00010958,2]
[347368502,1735737046618,-6531.68,0.00010958,2]
[347368503,1735737046627,-500.0,0.00010958,2]
[347368504,1735737046636,-500.0,0.00010958,2]
[347368505,1735737046646,-1727.85,0.00010958,2]
[347368506,1735737046655,-500.0,0.00010958,2]
[347368507,1735737046665,-500.0,0.00010958,2]
[347368508,1735737046675,-647.15,0.00010958,2]
[347368509,1735737046684,-1394.66,0.00010958,2]
[347368510,1735737046694,-2108.23,0.00010958,2]
[347368511,1735737046703,-3088.65,0.00010958,2]
[347368512,1735737046713,-500.0,0.00010958,2]
[347368513,1735737046722,-507.5,0.00010958,2]
[347368514,1735737046732,-500.0,0.00010973,2]
[347368515,1735737046741,-275.95985761,0.00010973,2]
[347368516,1735737046751,-500.0,0.00010973,2]
[347368517,1735737046761,-179.96193575,0.00010973,2]
[347368518,1735737046770,-2607.05,0.00010979,2]
[347368519,1735737046779,-1683.01,0.00010979,2]
[347368520,1735737046789,-3875.57,0.00010979,2]
[347368521,1735737046798,-10438.08,0.00010979,2]
[347368522,1735737046808,-3241.57,0.00010979,2]
[347368523,1735737046818,-2387.1,0.00010979,2]
[347368524,1735737046827,-1973.19,0.00010979,2]
[347368525,1735737046837,-1914.58,0.00010979,2]
[347368526,1735737046846,-1634.33,0.00010979,2]
[347368527,1735737046856,-1566.69,0.00010979,2]
[347368528,1735737046869,-2240.82,0.00010979,2]
[347368529,1735737046879,-245.56263686,0.00010986,2]
[347368530,1735737046890,-150.0,0.00010986,2]
[347368531,1735737046899,-150.0,0.00010986,2]
[347368532,1735737046909,-150.0,0.00010986,2]
[347368533,1735737046918,-503.0,0.00010986,2]
[347368534,1735737046927,-184.34728937,0.00010989,2]
[347368535,1735737046937,-2379051.90110652,0.0001099,2]
[347368536,1735737046946,-589.01,0.00010999,2]
[347368537,1735737046956,-1863.21,0.00010999,2]
[347368538,1735737046965,-1863.21,0.00010999,2]
[347368539,1735737046976,-1863.21,0.00010999,2]
[347368540,1735737046985,-1863.21,0.00010999,2]
[347368541,1735737046994,-1863.21,0.00010999,2]
[347368542,1735737047004,-1863.21,0.00010999,2]
[347368543,1735737047014,-1863.21,0.00010999,2]
[347368544,1735737047023,-1863.21,0.00010999,2]
[347368545,1735737047032,-1863.21,0.00010999,2]
[347368546,1735737047042,-1863.21,0.00010999,2]
[347368547,1735737047052,-1863.21,0.00010999,2]
[347368548,1735737047061,-1863.21,0.00010999,2]
[347368549,1735737047071,-1863.21,0.00010999,2]
[347368550,1735737047080,-1863.21,0.00010999,2]
[347368551,1735737047089,-1863.21,0.00010999,2]
[347368552,1735737047098,-1863.21,0.00010999,2]
[347368553,1735737047107,-1863.21,0.00010999,2]
[347368554,1735737047117,-1863.21,0.00010999,2]
[347368555,1735737047126,-1863.21,0.00010999,2]
[347368556,1735737047137,-1863.39,0.00010999,2]
[347368557,1735737047146,-39233.28498985,0.00011,2]
[347368558,1735737047155,-2702197.74279461,0.00011,2]
[347368559,1735737047165,-23711527.96849698,0.00011,2]
[347368560,1735737047845,-58859.22813029,0.00011,2]
[347368561,1735737047872,-5216.32132093,0.00011,2]
[347368562,1735737047902,-611.96207322,0.00011,2]
[347368563,1735737047931,-4614.16906679,0.00011,2]
[347368564,1735737047943,-23495.7748294,0.00011,2]
[347368565,1735737047954,-1444.96791907,0.00011,2]
[347368566,1735737047965,-8013.03588428,0.00011,2]
[347368567,1735737048085,-28817.57440624,0.00011,2]
[347368568,1735737048096,-10811.00304557,0.00011,2]
[347368569,1735737048122,-32726.87380082,0.00011,2]
[347368570,1735737048133,-47897.5,0.00011,2]
[347368571,1735737048787,-1677.475,0.00011,2]
[347368572,1735737048844,-22126.02735357,0.00011,2]
[347368573,1735737048855,-947.72946,0.00011,2]
[347368574,1735737050047,-535.23974179,0.00011,2]
[347368575,1735737050059,-1355.14297309,0.00011,2]
[347368576,1735737050071,-7805.84110839,0.00011,2]
[347368577,1735737050088,-282.27415023,0.00011,2]
[347368578,1735737050919,-500.0,0.00010958,2]
[347368579,1735737050929,-500.0,0.00010958,2]
[347368580,1735737050941,-2087.07355343,0.00011,2]
[347368581,1735737136720,1000.3955547,9.5e-05,2]
[347368582,1735737176869,168.22,8.014e-05,2]
[347368584,1735737267699,155.55,9.987e-05,2]
[347368585,1735737357062,-100000.0,0.00011,4]
[347368586,1735737426438,-30000.0,0.00011,4]
[347368587,1735737567113,300.0,9.965e-05,2]
[347368588,1735737590711,1262.61,9.962e-05,2]
[347368589,1735737684714,3366.99,9.966e-05,2]
[347368590,1735737722914,-37791.75655109,0.00011295,7]
[347368591,1735737734004,868.49,9.935e-05,2]
[347368592,1735737791168,684.3,9.912e-05,2]
[347368593,1735737834954,5398.16,9.907e-05,2]
[347368594,1735737859088,205.7,9.922e-05,2]
[347368595,1735737862374,374.1,8.219e-05,2]
[347368596,1735737911042,150.0,9.888e-05,2]
[347368597,1735737911369,150.0,9.906e-05,2]
[347368598,1735737912134,150.0,9.925e-05,2]
[347368599,1735737912461,150.0,9.944e-05,2]
[347368600,1735737912830,150.0,9.962e-05,2]
[347368601,1735737913168,150.0,9.981e-05,2]
[347368602,1735737913482,150.0,9.999e-05,2]
[347368603,1735737939804,150.0,9.888e-05,2]
[347368604,1735737940109,150.0,9.956e-05,2]
[347368605,1735737955751,150.0,9.888e-05,2]
[347368606,1735737956262,150.0,9.945e-05,2]
[347368607,1735737968279,150.0,9.888e-05,2]
[347368608,1735737981002,150.0,9.888e-05,2]
[347368635,1735738020149,1000.0,9.521e-05,2]
[347368692,1735738115636,34012.58089598,0.00011292,7]
[347368693,1735738118187,250.0,9.524e-05,2]
[347368700,1735738142913,168.22,7.617e-05,2]
[347368701,1735738197899,418.09,9.526e-05,2]
[347368707,1735738232046,-150.0,0.00010003,2]
[347368708,1735738232056,-150.0,0.00010018,2]
[347368709,1735738232066,-150.0,0.00010025,2]
[347368710,1735738232076,-150.0,0.00010037,2]
[347368711,1735738232085,-150.0,0.00010055,2]
[347368712,1735738232095,-300.0,0.00010056,2]
[347368713,1735738232104,-498.51,0.00010057,2]
[347368714,1735738232113,-91.90786084,0.00010057,2]
[347368715,1735738232431,-411.47213916,0.00010057,2]
[347368716,1735738232441,-502.21,0.00010057,2]
[347368717,1735738232450,-508.05,0.00010057,2]
[347368718,1735738232460,-496.6,0.00010057,2]
[347368719,1735738232470,-508.05,0.00010057,2]
[347368720,1735738232480,-150.0,0.00010061,2]
[347368721,1735738232489,-150.0,0.00010074,2]
[347368722,1735738232499,-150.0,0.00010093,2]
[347368724,1735738232508,-150.0,0.00010094,2]
[347368725,1735738232518,-150.0,0.00010111,2]
[347368726,1735738232527,-150.0,0.00010119,2]
[347368727,1735738232536,-150.0,0.0001013,2]
[347368728,1735738232546,-456.24,0.00010137,2]
[347368729,1735738232555,-150.0,0.00010148,2]
[347368730,1735738232564,-150.0,0.00010162,2]
[347368731,1735738232573,-150.0,0.00010162,2]
[347368732,1735738232583,-150.0,0.00010167,2]
[347368733,1735738232592,-150.0,0.00010177,2]
[347368734,1735738232601,-150.0,0.00010186,2]
[347368735,1735738232611,-150.0,0.00010204,2]
[347368736,1735738232620,-150.0,0.00010223,2]
[347368737,1735738232629,-150.0,0.00010231,2]
[347368738,1735738232639,-150.0,0.00010235,2]
[347368739,1735738232648,-150.0,0.00010241,2]
[347368740,1735738232657,-150.0,0.0001026,2]
[347368741,1735738232666,-150.0,0.00010279,2]
[347368742,1735738232677,-150.0,0.00010292,2]
[347368743,1735738232686,-167.2,0.00010294,2]
[347368744,1735738232695,-150.0,0.00010297,2]
[347368745,1735738232705,-150.0,0.000103,2]
[347368746,1735738232714,-714.89344,0.000103,2]
[347368747,1735738232723,-150.0,0.00010316,2]
[347368748,1735738232732,-150.0,0.00010335,2]
[347368749,1735738232741,-150.0,0.0001035,2]
[347368750,1735738232750,-150.0,0.00010353,2]
[347368751,1735738232759,-150.0,0.00010368,2]
[347368752,1735738232769,-150.0,0.00010372,2]
[347368753,1735738232778,-150.0,0.0001039,2]
[347368754,1735738232787,-150.0,0.00010408,2]
[347368755,1735738232797,-150.0,0.00010409,2]
[347368756,1735738232807,-150.0,0.00010428,2]
[347368757,1735738232816,-150.0,0.00010428,2]
[347368758,1735738232825,-150.0,0.00010437,2]
[347368759,1735738232835,-150.0,0.00010437,2]
[347368760,1735738232844,-150.0,0.00010446,2]
[347368761,1735738232854,-158.001,0.0001045,2]
[347368762,1735738232863,-150.0,0.00010465,2]
[347368763,1735738232872,-150.0,0.00010466,2]
[347368764,1735738232882,-374.1,0.00010471,2]
[347368765,1735738232892,-150.0,0.00010484,2]
[347368766,1735738232901,-206.13,0.00010499,2]
[347368767,1735738232911,-150.0,0.00010502,2]
[347368768,1735738232920,-151.19,0.00010503,2]
[347368769,1735738232930,-150.0,0.00010506,2]
[347368770,1735738232939,-150.0,0.00010521,2]
[347368771,1735738232948,-150.0,0.00010524,2]
[347368772,1735738232958,-150.0,0.00010539,2]
[347368773,1735738232967,-150.0,0.00010558,2]
[347368774,1735738232977,-150.0,0.00010574,2]
[347368775,1735738232986,-150.0,0.00010577,2]
[347368776,1735738232995,-150.0,0.00010582,2]
[347368777,1735738233004,-150.0,0.00010595,2]
[347368778,1735738233014,-771.5,0.000106,2]
[347368779,1735738233023,-437.54,0.000106,2]
[347368780,1735738233033,-771.5,0.000106,2]
[347368781,1735738233042,-437.54,0.000106,2]
[347368782,1735738233052,-371.32,0.000106,2]
[347368783,1735738233062,-437.54,0.000106,2]
[347368784,1735738233071,-437.54,0.000106,2]
[347368785,1735738233081,-437.54,0.000106,2]
[347368786,1735738233091,-150.82,0.000106,2]
[347368787,1735738233100,-299.99,0.00010602,2]
[347368788,1735738233110,-150.0,0.00010614,2]
[347368789,1735738233119,-150.0,0.00010633,2]
[347368790,1735738233129,-150.0,0.00010639,2]
[347368791,1735738233139,-150.0,0.00010643,2]
[347368792,1735738233148,-150.0,0.00010651,2]
[347368793,1735738233158,-150.0,0.0001067,2]
[347368794,1735738233167,-150.0,0.00010688,2]
[347368795,1735738233177,-150.0,0.00010697,2]
[347368796,1735738233188,-490.58,0.00010702,2]
[347368797,1735738233198,-1141.21,0.00010702,2]
[347368798,1735738233208,-150.0,0.00010707,2]
[347368799,1735738233218,-1000.0,0.00010711,2]
[347368800,1735738233228,-150.0,0.00010712,2]
[347368801,1735738233238,-150.0,0.00010726,2]
[347368802,1735738233247,-41890.0,0.0001074,2]
[347368803,1735738233257,-150.0,0.00010744,2]
[347368804,1735738233267,-150.0,0.00010755,2]
[347368805,1735738233277,-204.8118,0.00010758,2]
[347368806,1735738233287,-150.0,0.00010763,2]
[347368807,1735738233297,-150.0,0.0001078,2]
[347368808,1735738233307,-506.28,0.00010781,2]
[347368809,1735738233317,-150.0,0.00010781,2]
[347368810,1735738233327,-150.0,0.000108,2]
[347368811,1735738233337,-150.0,0.00010813,2]
[347368812,1735738233346,-150.0,0.00010819,2]
[347368813,1735738233357,-150.0,0.00010837,2]
[347368814,1735738233366,-1476.358,0.00010847,2]
[347368815,1735738233376,-1000.0,0.00010847,2]
[347368816,1735738233386,-197.868,0.00010847,2]
[347368817,1735738233396,-150.0,0.00010849,2]
[347368818,1735738233406,-150.0,0.00010856,2]
[347368819,1735738233415,-37045.4753,0.00010858,2]
[347368820,1735738233425,-9420.5586,0.00010858,2]
[347368821,1735738233435,-500.0,0.00010858,2]
[347368822,1735738233446,-4949.75,0.00010858,2]
[347368823,1735738233455,-32462.6767,0.00010858,2]
[347368824,1735738233464,-150.0,0.00010871,2]
[347368825,1735738233473,-150.0,0.00010875,2]
[347368826,1735738233482,-4781.4731,0.0001089,2]
[347368827,1735738233492,-150.0,0.00010893,2]
[347368828,1735738233501,-23347.22864302,0.000109,2]
[347368829,1735738233510,-3935.316997,0.000109,2]
[347368830,1735738233519,-3165.3743,0.000109,2]
[347368831,1735738233528,-1000.0,0.000109,2]
[347368832,1735738233537,-69300.7016,0.000109,2]
[347368833,1735738233546,-164.16321189,0.000109,2]
[347368834,1735738233555,-164.16321188,0.000109,2]
[347368835,1735738233564,-164.16321188,0.000109,2]
[347368836,1735738233572,-164.16321188,0.000109,2]
[347368837,1735738233581,-4365.07147973,0.000109,2]
[347368838,1735738233607,-2242.82792372,0.000109,2]
[347368839,1735738233617,-200.0,0.00010903,2]
[347368840,1735738233626,-150.0,0.00010912,2]
[347368841,1735738233635,-150.0,0.00010918,2]
[347368842,1735738233645,-150.0,0.00010928,2]
[347368843,1735738233654,-150.0,0.0001093,2]
[347368844,1735738233664,-5212.5457,0.00010932,2]
[347368845,1735738233674,-505.98,0.00010942,2]
[347368846,1735738233683,-150.0,0.00010949,2]
[347368847,1735738233693,-495.23,0.00010957,2]
[347368848,1735738233704,-505.99,0.00010957,2]
[347368849,1735738233713,-500.0,0.00010958,2]
[347368850,1735738233722,-500.0,0.00010958,2]
[347368851,1735738233732,-494.07727682,0.00010958,2]
[347368852,1735738233742,-500.0,0.00010958,2]
[347368853,1735738233751,-500.0,0.00010958,2]
[347368854,1735738233760,-2669.14,0.00010958,2]
[347368855,1735738233769,-500.0,0.00010958,2]
[347368856,1735738233779,-4849.17,0.00010958,2]
[347368857,1735738233788,-5788.67,0.00010958,2]
[347368858,1735738233797,-244.15026202,0.00010958,2]
[347368859,1735738233807,-4084.05,0.00010958,2]
[347368860,1735738233816,-500.0,0.00010958,2]
[347368861,1735738233825,-500.0,0.00010958,2]
[347368862,1735738233835,-500.0,0.00010958,2]
[347368863,1735738233844,-500.0,0.00010958,2]
[347368864,1735738233853,-9346.46,0.00010958,2]
[347368865,1735738233862,-523.64,0.00010958,2]
[347368866,1735738233872,-691.46,0.00010958,2]
[347368867,1735738233881,-500.0,0.00010958,2]
[347368868,1735738233891,-500.0,0.00010958,2]
[347368869,1735738233901,-500.0,0.00010958,2]
[347368870,1735738233910,-558.78,0.00010958,2]
[347368871,1735738233919,-500.0,0.00010958,2]
[347368872,1735738233929,-803.89,0.00010958,2]
[347368873,1735738233939,-500.0,0.00010958,2]
[347368874,1735738233948,-500.30582414,0.00010958,2]
[347368875,1735738233958,-500.0,0.00010958,2]
[347368876,1735738233967,-500.0,0.00010958,2]
[347368877,1735738233977,-500.0,0.00010958,2]
[347368878,1735738233987,-6047.34,0.00010958,2]
[347368879,1735738233996,-500.0,0.00010958,2]
[347368880,1735738234006,-1930.36,0.00010958,2]
[347368881,1735738234016,-500.0,0.00010958,2]
[347368882,1735738234025,-500.0,0.00010958,2]
[347368883,1735738234035,-500.0,0.00010958,2]
[347368884,1735738234044,-500.0,0.00010958,2]
[347368885,1735738234054,-500.0,0.00010958,2]
[347368886,1735738234064,-500.0,0.00010958,2]
[347368887,1735738234073,-500.0,0.00010958,2]
[347368888,1735738234083,-698.12,0.00010958,2]
[347368889,1735738234093,-964.29,0.00010958,2]
[347368890,1735738234103,-500.0,0.00010958,2]
[347368891,1735738234112,-500.0,0.00010958,2]
[347368892,1735738234122,-792.4,0.00010958,2]
[347368893,1735738234131,-522.99,0.00010958,2]
[347368894,1735738234140,-1297.46,0.00010958,2]
[347368895,1735738234150,-500.0,0.00010958,2]
[347368896,1735738234159,-500.0,0.00010958,2]
[347368897,1735738234168,-15978.6183363,0.00010958,2]
[347368898,1735738234218,-9737.4616637,0.00010958,2]
[347368899,1735738234227,-500.0,0.00010958,2]
[347368900,1735738234237,-500.0,0.00010958,2]
[347368901,1735738234246,-500.0,0.00010958,2]
[347368902,1735738234256,-500.0,0.00010958,2]
[347368903,1735738234266,-500.0,0.00010958,2]
[347368904,1735738234277,-648.84278583,0.00010958,2]
[347368905,1735738234289,-500.1,0.00010958,2]
[347368906,1735738234298,-641.43,0.00010958,2]
[347368907,1735738234308,-500.0,0.00010958,2]
[347368908,1735738234319,-500.0,0.00010958,2]
[347368909,1735738234328,-500.57443966,0.00010958,2]
[347368910,1735738234338,-500.0,0.00010958,2]
[347368911,1735738234348,-696.35,0.00010958,2]
[347368912,1735738234358,-500.0,0.00010958,2]
[347368913,1735738234368,-500.0,0.00010958,2]
[347368914,1735738234377,-500.0,0.00010958,2]
[347368915,1735738234387,-568.83,0.00010958,2]
[347368916,1735738234396,-2023.49,0.00010958,2]
[347368917,1735738234416,-1471.21,0.00010958,2]
[347368918,1735738234428,-500.0,0.00010958,2]
[347368919,1735738234438,-679.29,0.00010958,2]
[347368920,1735738234447,-607.27,0.00010958,2]
[347368921,1735738234457,-15681.2,0.00010958,2]
[347368922,1735738234467,-500.0,0.00010958,2]
[347368923,1735738234476,-500.0,0.00010958,2]
[347368924,1735738234486,-931.66,0.00010958,2]
[347368925,1735738234496,-642.56,0.00010958,2]
[347368926,1735738234506,-971.95,0.00010958,2]
[347368927,1735738234515,-756.42,0.00010958,2]
[347368928,1735738234525,-500.0,0.00010958,2]
[347368929,1735738234535,-500.0,0.00010958,2]
[347368930,1735738234546,-610.94938262,0.00010958,2]
[347368931,1735738234556,-500.0,0.00010958,2]
[347368932,1735738234565,-896.56,0.00010958,2]
[347368933,1735738234575,-500.0,0.00010958,2]
[347368934,1735738234584,-500.0,0.00010958,2]
[347368935,1735738234594,-500.0,0.00010958,2]
[347368936,1735738234603,-624.09,0.00010958,2]
[347368937,1735738234613,-579.27,0.00010958,2]
[347368938,1735738234623,-500.0,0.00010958,2]
[347368939,1735738234632,-630.53,0.00010958,2]
[347368940,1735738234642,-506.69,0.00010958,2]
[347368941,1735738234652,-500.0,0.00010958,2]
[347368942,1735738234662,-500.0,0.00010958,2]
[347368943,1735738234673,-1622.92,0.00010958,2]
[347368944,1735738234683,-500.0,0.00010958,2]
[347368945,1735738234693,-500.0,0.00010958,2]
[347368946,1735738234702,-500.0,0.00010958,2]
[347368947,1735738234712,-545.08,0.00010958,2]
[347368948,1735738234721,-500.0,0.00010958,2]
[347368949,1735738234731,-500.0,0.00010958,2]
[347368950,1735738234740,-1367.57,0.00010958,2]
[347368951,1735738234750,-500.0,0.00010958,2]
[347368952,1735738234759,-500.0,0.00010958,2]
[347368953,1735738234769,-567.31,0.00010958,2]
[347368954,1735738234779,-463.738574,0.00010958,2]
[347368955,1735738234788,-500.0,0.00010958,2]
[347368956,1735738234798,-500.0,0.00010958,2]
[347368957,1735738234807,-1659.78,0.00010958,2]
[347368958,1735738234817,-854.95,0.00010958,2]
[347368959,1735738234826,-500.0,0.00010958,2]
[347368960,1735738234836,-500.0,0.00010958,2]
[347368961,1735738234846,-500.0,0.00010958,2]
[347368962,1735738234855,-500.0,0.00010958,2]
[347368963,1735738234865,-500.0,0.00010958,2]
[347368964,1735738234874,-500.0,0.00010958,2]
[347368965,1735738234885,-500.0,0.00010958,2]
[347368966,1735738234894,-500.0,0.00010958,2]
[347368967,1735738234904,-570.21,0.00010958,2]
[347368968,1735738234914,-1179.45,0.00010958,2]
[347368969,1735738234922,-500.0,0.00010958,2]
[347368970,1735738234932,-261.69255783,0.00010958,2]
[347368971,1735738234941,-500.0,0.00010958,2]
[347368972,1735738234950,-628.83,0.00010958,2]
[347368973,1735738234960,-500.0,0.00010958,2]
[347368974,1735738234970,-500.0,0.00010958,2]
[347368975,1735738234979,-500.0,0.00010958,2]
[347368976,1735738234989,-500.0,0.00010958,2]
[347368977,1735738234998,-500.0,0.00010958,2]
[347368978,1735738235008,-500.0,0.00010958,2]
[347368979,1735738235017,-500.0,0.00010958,2]
[347368980,1735738235026,-500.0,0.00010958,2]
[347368981,1735738235036,-150.0,0.00010958,2]
[347368982,1735738235045,-500.0,0.00010958,2]
[347368983,1735738235054,-500.0,0.00010958,2]
[347368984,1735738235064,-500.0,0.00010958,2]
[347368985,1735738235074,-500.0,0.00010958,2]
[347368986,1735738235083,-500.0,0.00010958,2]
[347368987,1735738235092,-500.0,0.00010958,2]
[347368988,1735738235101,-500.0,0.00010958,2]
[347368989,1735738235111,-1073.93,0.00010958,2]
[347368990,1735738235120,-580.21,0.00010958,2]
[347368991,1735738235129,-500.0,0.00010958,2]
[347368992,1735738235138,-500.0,0.00010958,2]
[347368993,1735738235148,-500.0,0.00010958,2]
[347368994,1735738235157,-1112.42,0.00010958,2]
[347368995,1735738235166,-500.0,0.00010958,2]
[347368996,1735738235176,-500.0,0.00010958,2]
[347368997,1735738235185,-1791.67,0.00010958,2]
[347368998,1735738235194,-839.61,0.00010958,2]
[347368999,1735738235203,-500.0,0.00010958,2]
[347369000,1735738235212,-500.0,0.00010958,2]
[347369001,1735738235223,-6451.42,0.00010958,2]
[347369002,1735738235232,-1141.54,0.00010958,2]
[347369003,1735738235241,-500.0,0.00010958,2]
[347369004,1735738235251,-500.0,0.00010958,2]
[347369005,1735738235261,-500.0,0.00010958,2]
[347369006,1735738235270,-500.0,0.00010958,2]
[347369007,1735738235282,-500.0,0.00010958,2]
[347369008,1735738235292,-500.0,0.00010958,2]
[347369009,1735738235302,-500.0,0.00010958,2]
[347369010,1735738235312,-500.0,0.00010958,2]
[347369011,1735738235323,-500.0,0.00010958,2]
[347369012,1735738235332,-500.0,0.00010958,2]
[347369013,1735738235341,-500.0,0.00010958,2]
[347369014,1735738235351,-500.0,0.00010958,2]
[347369015,1735738235362,-500.0,0.00010958,2]
[347369016,1735738235372,-1291.64,0.00010958,2]
[347369017,1735738235382,-500.0,0.00010958,2]
[347369018,1735738235391,-569.31,0.00010958,2]
[347369019,1735738235401,-500.0,0.00010958,2]
[347369020,1735738235410,-500.0,0.00010958,2]
[347369021,1735738235420,-500.0,0.00010958,2]
[347369022,1735738235430,-434.59272903,0.00010958,2]
[347369023,1735738235439,-500.0,0.00010958,2]
[347369024,1735738235449,-1495.01,0.00010958,2]
[347369025,1735738235458,-500.0,0.00010958,2]
[347369026,1735738235467,-633.28,0.00010958,2]
[347369027,1735738235477,-500.0,0.00010958,2]
[347369028,1735738235486,-906.78,0.00010958,2]
[347369029,1735738235495,-685.19,0.00010958,2]
[347369030,1735738235504,-500.0,0.00010958,2]
[347369031,1735738235514,-1130.56,0.00010958,2]
[347369032,1735738235525,-500.0,0.00010958,2]
[347369033,1735738235534,-500.0,0.00010958,2]
[347369034,1735738235543,-500.0,0.00010958,2]
[347369035,1735738235552,-500.0,0.00010958,2]
[347369036,1735738235562,-689.9,0.00010958,2]
[347369037,1735738235571,-500.0,0.00010958,2]
[347369038,1735738235581,-950.82,0.00010958,2]
[347369039,1735738235590,-500.0,0.00010958,2]
[347369040,1735738235599,-645.21,0.00010958,2]
[347369041,1735738235608,-500.0,0.00010958,2]
[347369042,1735738235619,-14811.42,0.00010958,2]
[347369043,1735738235631,-500.0,0.00010958,2]
[347369044,1735738235642,-1105.33,0.00010958,2]
[347369045,1735738235651,-1140.65,0.00010958,2]
[347369046,1735738235660,-646.53,0.00010958,2]
[347369047,1735738235669,-500.0,0.00010958,2]
[347369048,1735738235680,-777.49,0.00010958,2]
[347369049,1735738235689,-562.98,0.00010958,2]
[347369050,1735738235699,-500.0,0.00010958,2]
[347369051,1735738235708,-500.0,0.00010958,2]
[347369052,1735738235718,-2124.27,0.00010958,2]
[347369053,1735738235727,-649.78,0.00010958,2]
[347369054,1735738235736,-500.0,0.00010958,2]
[347369055,1735738235746,-500.0,0.00010958,2]
[347369056,1735738235757,-500.0,0.00010958,2]
[347369057,1735738235766,-1106.53,0.00010958,2]
[347369058,1735738235777,-500.0,0.00010958,2]